bitfinex/quotes_ETHUSD_20240907
["timestamp","ask_amount","ask_price","bid_price","bid_amount"]
[1725692475510,3.7661375,2288.4,2288.1,0.0873944]
[1725692476093,3.7661375,2288.4,2287.9,24.26487705]
[1725692476293,4.37081,2288.0,2287.4,26.66322705]
[1725692476609,3.7661375,2288.1,2287.5,4.45882202]
[1725692476610,8.1367475,2288.1,2287.5,4.45882202]
[1725692477195,8.1367475,2288.1,2287.6,4.37136]
[1725692477411,8.1367475,2288.1,2287.7,0.08741003]
[1725692477610,3.7661375,2288.1,2287.7,0.08741003]
[1725692477913,8.1366075,2288.1,2287.7,0.08741003]
[1725692478121,4.37065,2288.0,2287.4,31.03488705]
[1725692478299,8.1366075,2288.1,2287.5,4.37157]
[1725692478625,12.5072075,2288.1,2287.6,0.08740973]
[1725692478785,12.5071775,2288.1,2287.6,0.08740973]
[1725692478987,8.1366075,2288.1,2287.6,0.08740973]
[1725692479235,4.37078,2288.0,2287.6,0.08740973]
[1725692479395,4.37092,2287.9,2287.4,26.66322705]
[1725692479715,4.37105,2287.8,2287.5,0.08741393]
[1725692480105,4.3712,2287.7,2287.4,19.89406705]
[1725692480986,4.3712,2287.7,2287.5,0.08742159]
[1725692481187,4.3712,2287.7,2287.4,19.89406705]
[1725692482225,4.3712,2287.7,2287.5,19.89406705]
[1725692482588,6.1904375,2288.4,2287.6,26.75026866]
[1725692482893,6.1904375,2288.4,2287.6,22.37898866]
[1725692483141,6.1904375,2288.4,2287.6,26.75034866]
[1725692483343,6.1904375,2288.4,2287.7,4.37119]
[1725692483658,2.0,2288.6,2287.8,4.4583726]
[1725692483968,3.7661375,2288.5,2287.8,0.0874026]
[1725692484142,3.7661375,2288.5,2287.8,19.98146965]
[1725692485339,3.7661375,2288.5,2287.8,24.35246965]
[1725692485547,3.7661375,2288.5,2287.8,19.98146965]
[1725692486137,3.7661375,2288.2,2287.8,19.98146965]
[1725692488178,3.7661375,2288.2,2287.9,19.89406705]
[1725692490979,6.2180375,2288.2,2287.9,19.89406705]
[1725692492362,3.7661375,2288.2,2287.9,19.89406705]
[1725692494189,3.7661375,2288.2,2288.0,19.89406705]
[1725692495473,6.14275125,2288.2,2288.0,19.89406705]
[1725692496267,5.7661375,2288.2,2288.0,19.89406705]
[1725692496683,3.7661375,2288.2,2288.0,19.89406705]
[1725692499298,4.22399076,2288.2,2288.0,19.89406705]
[1725692500995,8.67589076,2288.2,2288.0,19.89406705]
[1725692506169,8.67589076,2288.2,2287.6,22.33276705]
[1725692506371,8.67589076,2288.2,2287.7,0.08740787]
[1725692506572,6.22399076,2288.2,2287.7,0.08740787]
[1725692507470,4.22399076,2288.2,2287.7,19.98147492]
[1725692507697,4.22399076,2288.2,2287.8,0.08740304]
[1725692511823,2.2755,2288.1,2287.8,0.08740304]
[1725692512333,2.2755,2288.1,2287.6,0.08740835]
[1725692512697,4.22399076,2288.2,2287.6,4.45878835]
[1725692513088,4.22399076,2288.2,2287.6,0.08740835]
[1725692514128,4.22399076,2288.2,2287.6,4.45878835]
[1725692514535,4.22399076,2288.2,2287.7,4.37112]
[1725692514830,4.22399076,2288.2,2287.8,0.08740325]
[1725692515205,4.22399076,2288.2,2287.9,19.89406705]
[1725692515402,4.22399076,2288.2,2288.0,0.08740325]
[1725692516325,0.45785326,2288.2,2288.0,0.08740325]
[1725692518504,0.45785326,2288.2,2288.1,2.4548]
[1725692520011,3.7661375,2288.5,2288.1,2.4548]
[1725692520216,3.7661375,2288.5,2288.0,19.89406705]
[1725692520581,4.22394796,2288.5,2288.0,19.89406705]
[1725692521712,2.2755,2288.4,2288.0,19.89406705]
[1725692522326,3.7661375,2288.2,2288.0,19.89406705]
[1725692522702,3.7661375,2288.2,2288.0,22.34886705]
[1725692523334,3.7661375,2288.2,2288.0,19.89406705]
[1725692524037,0.45781046,2288.5,2288.0,19.89406705]
[1725692524200,0.45781046,2288.5,2288.1,19.98145642]
[1725692524417,4.22394796,2288.5,2288.1,19.89406705]
[1725692524664,4.22394796,2288.5,2288.2,0.08739485]
[1725692525354,4.22394796,2288.5,2288.1,19.89406705]
[1725692525731,2.2755,2288.4,2288.1,19.89406705]
[1725692528182,0.45781046,2288.5,2288.2,19.98146628]
[1725692528682,0.45781046,2288.5,2288.2,19.89406705]
[1725692529153,6.0829375,2288.3,2288.2,19.89406705]
[1725692531267,2.45781046,2288.5,2288.2,19.89406705]
[1725692532983,3.7661375,2288.3,2287.8,19.89406705]
[1725692533192,3.7661375,2288.3,2287.9,0.08740638]
[1725692534677,3.7661375,2288.0,2287.7,19.89406705]
[1725692534864,2.3168,2287.8,2287.5,19.89406705]
[1725692535054,3.7661375,2287.6,2287.5,19.89406705]
[1725692535256,3.7661375,2287.6,2287.3,19.89406705]
[1725692536189,3.7661375,2287.6,2286.9,26.5601]
[1725692536190,2.3168,2287.5,2287.0,19.89406705]
[1725692536394,3.7661375,2287.3,2286.8,19.89406705]
[1725692536583,3.7661375,2287.1,2286.8,19.89406705]
[1725692537351,6.0829375,2287.1,2286.8,19.89406705]
[1725692537587,3.7661375,2286.9,2286.8,19.89406705]
[1725692537792,0.45801129,2287.8,2286.9,2.4175]
[1725692537793,2.0,2287.4,2286.9,2.4175]
[1725692537993,4.22414879,2287.8,2287.1,4.37218]
[1725692538153,4.22414879,2287.8,2286.6,0.9026188]
[1725692538154,4.22414879,2287.8,2287.4,2.4175]
[1725692538361,3.7661375,2288.1,2287.5,0.08741585]
[1725692538660,3.7661375,2288.1,2287.8,6.7885]
[1725692538850,3.7661375,2288.1,2287.9,0.08740591]
[1725692539859,2.45786855,2288.2,2287.6,0.08740809]
[1725692540103,2.45786855,2288.2,2287.6,4.7091689]
[1725692541703,2.45786855,2288.2,2287.7,4.37118]
[1725692541868,2.45786855,2288.2,2287.8,0.08740404]
[1725692542304,0.45786855,2288.2,2287.9,2.4175]
[1725692542503,0.45786855,2288.2,2288.0,0.0874009]
[1725692542801,0.45786855,2288.2,2288.0,0.77498999]
[1725692543149,0.45786855,2288.2,2288.1,19.89406705]
[1725692544867,0.45786855,2288.2,2288.1,24.26449705]
[1725692545627,0.45786855,2288.2,2287.7,19.89406705]
[1725692545796,3.7661375,2288.0,2287.7,19.89406705]
[1725692548307,2.0,2287.9,2287.3,19.89406705]
[1725692548510,2.4803,2287.8,2287.4,19.89406705]
[1725692548818,2.4803,2287.8,2287.4,19.98149304]
[1725692549102,2.4803,2287.8,2287.4,19.89406705]
[1725692549409,2.0,2287.6,2287.4,19.89406705]
[1725692550896,3.7661375,2287.7,2287.4,19.89406705]
[1725692551423,2.4803,2287.8,2287.4,19.89406705]
[1725692551599,2.4803,2287.8,2287.5,0.08742285]
[1725692553196,2.4803,2287.8,2287.4,19.89406705]
[1725692553794,3.38577313,2287.8,2287.4,19.89406705]
[1725692553989,2.0,2287.6,2287.4,19.89406705]
[1725692554186,2.0,2287.6,2287.1,19.89406705]
[1725692554389,2.0,2287.6,2287.2,0.08743241]
[1725692555137,3.7661375,2287.7,2287.2,0.08743241]
[1725692555639,3.7661375,2287.7,2287.2,0.08742943]
[1725692556296,2.0,2287.6,2287.2,0.08743165]
[1725692556905,2.93819741,2287.8,2287.0,19.89406705]
[1725692556906,4.4803,2287.3,2287.0,19.89406705]
[1725692557229,3.7661375,2287.1,2286.7,19.89406705]
[1725692557893,2.4803,2287.0,2286.7,19.89406705]
[1725692558089,4.4803,2287.0,2286.6,19.89406705]
[1725692558324,3.7661375,2286.8,2286.3,19.89406705]
[1725692558519,2.0,2286.7,2286.3,19.89406705]
[1725692559460,2.57661375,2286.7,2286.3,19.89406705]
[1725692559636,2.0,2286.7,2286.3,19.89406705]
[1725692562259,2.4803,2286.6,2286.3,19.89406705]
[1725692562659,2.0,2286.7,2286.3,19.89406705]
[1725692563187,2.0,2286.7,2286.1,24.26829705]
[1725692563345,2.0,2286.7,2286.2,0.08746659]
[1725692564153,3.7661375,2286.5,2286.1,19.89406705]
[1725692564758,6.2464375,2286.5,2286.1,19.89406705]
[1725692565983,2.0,2286.4,2286.2,0.03927977]
[1725692566197,2.4803,2286.3,2286.2,0.03927977]
[1725692566349,6.6944675,2286.3,2286.2,0.03927977]
[1725692566550,2.0,2286.0,2285.7,19.89406705]
[1725692566754,2.0,2286.0,2285.8,0.03927977]
[1725692566957,6.6944675,2286.3,2285.6,0.08749315]
[1725692567251,6.6944675,2286.3,2285.7,0.03927977]
[1725692567476,2.0,2286.0,2285.7,0.03927977]
[1725692567996,8.6944675,2286.3,2285.7,0.03927977]
[1725692568174,2.0,2286.0,2285.7,0.03927977]
[1725692569553,2.0,2286.0,2285.5,19.89406705]
[1725692569754,2.0,2286.0,2285.6,0.03927977]
[1725692570189,2.0,2286.0,2285.6,0.12677531]
[1725692570853,2.3606,2285.9,2285.6,0.03927977]
[1725692571060,2.3606,2285.9,2285.6,0.12677495]
[1725692571762,2.3606,2285.9,2285.6,0.03927977]
[1725692571962,5.7661375,2285.7,2285.6,0.03927977]
[1725692572194,8.1267375,2285.7,2285.6,0.03927977]
[1725692572391,8.1267375,2285.7,2285.2,7.46]
[1725692572692,3.7661375,2285.3,2285.0,19.89406705]
[1725692572878,6.1267375,2285.3,2285.0,19.89406705]
[1725692573298,3.7661375,2285.1,2284.9,19.89406705]
[1725692573594,3.7661375,2285.1,2284.7,19.89406705]
[1725692574304,3.7661375,2284.8,2284.5,27.35406705]
[1725692574486,3.7661375,2284.6,2284.5,27.35406705]
[1725692574656,3.7661375,2284.6,2284.3,19.89406705]
[1725692576404,3.7661375,2284.4,2284.3,19.89406705]
[1725692576610,6.1267375,2284.4,2284.3,19.89406705]
[1725692577999,2.0,2284.5,2284.3,19.89406705]
[1725692578296,3.7661375,2284.4,2284.0,19.89406705]
[1725692581201,2.0,2284.5,2284.1,0.08755803]
[1725692581507,2.3606,2284.7,2284.2,4.37778]
[1725692583168,4.3606,2284.7,2284.2,8.75557]
[1725692583374,2.0,2284.7,2284.2,4.37778]
[1725692584322,2.0,2284.7,2284.2,4.46532772]
[1725692584621,2.0,2284.7,2284.3,0.04417999]
[1725692584979,2.0,2284.7,2284.2,8.75557]
[1725692585211,0.45818525,2284.6,2284.3,0.04417999]
[1725692585377,0.45818525,2284.6,2284.2,8.75558]
[1725692585578,0.45818525,2284.6,2284.3,0.04417999]
[1725692585778,0.45818525,2284.6,2284.2,4.37778]
[1725692585978,0.45818525,2284.6,2284.3,0.04417999]
[1725692586277,0.45818525,2284.6,2284.3,4.37769]
[1725692586620,0.01526784,2284.6,2284.5,4.37732]
[1725692586816,0.01526784,2284.6,2284.5,24.35892199]
[1725692587004,0.01526784,2284.6,2284.5,24.40289699]
[1725692587202,0.01526784,2284.6,2284.5,19.93804205]
[1725692587587,0.01526784,2284.6,2284.5,24.31536205]
[1725692588424,0.01526784,2284.6,2284.5,26.81186205]
[1725692588628,0.01526784,2284.6,2284.5,31.18918205]
[1725692588827,0.01526784,2284.6,2284.5,26.81186205]
[1725692590140,0.01526784,2284.6,2284.5,19.93804205]
[1725692596032,0.01526784,2284.6,2284.5,0.043975]
[1725692596234,0.01526784,2284.6,2284.3,28.64946705]
[1725692596471,0.01526784,2284.6,2284.5,0.04405182]
[1725692596670,0.01526784,2284.6,2284.3,24.27166705]
[1725692596960,0.01526784,2284.6,2284.5,0.04396222]
[1725692597167,0.01526784,2284.6,2284.4,4.46494791]
[1725692597371,0.01526784,2284.6,2284.5,0.04396222]
[1725692597967,0.01526784,2284.6,2284.4,4.46504792]
[1725692598160,0.01526784,2284.6,2284.5,0.04396222]
[1725692598543,0.01526784,2284.6,2284.4,4.46503792]
[1725692598735,0.01526784,2284.6,2284.5,0.22663188]
[1725692598965,0.01526784,2284.6,2284.5,0.04396222]
[1725692599273,0.01526784,2284.6,2284.5,0.22664045]
[1725692600470,0.01526784,2284.6,2284.5,4.60396045]
[1725692600630,0.01526784,2284.6,2284.5,0.69692078]
[1725692601267,0.01526784,2284.6,2284.5,5.62054286]
[1725692601768,0.01526784,2284.6,2284.5,4.89151318]
[1725692601957,0.01526784,2284.6,2284.5,0.60925686]
[1725692602357,0.01526784,2284.6,2284.5,1.15553589]
[1725692603467,0.01526784,2284.6,2284.5,0.60925686]
[1725692605685,0.01526784,2284.6,2284.5,0.22656376]
[1725692605989,6.84620587,2284.6,2284.5,0.04396222]
[1725692606184,6.04200534,2284.6,2284.5,0.04396222]
[1725692606476,6.04200534,2284.6,2284.5,0.04108603]
[1725692606641,6.04200534,2284.6,2284.2,19.89406705]
[1725692606841,3.7661375,2284.3,2284.2,19.89406705]
[1725692607455,6.0267375,2284.3,2284.2,19.89406705]
[1725692613147,6.0267375,2284.3,2283.9,19.89406705]
[1725692614568,6.0267375,2284.3,2284.0,0.04182874]
[1725692615171,3.7661375,2284.1,2284.0,0.04182874]
[1725692615694,3.7661375,2284.1,2284.0,0.04196963]
[1725692615894,3.7661375,2284.1,2283.7,19.89406705]
[1725692616108,3.7661375,2284.1,2284.0,0.04198244]
[1725692616304,3.7661375,2284.1,2283.7,19.89406705]
[1725692616610,3.7661375,2284.1,2284.0,0.04198244]
[1725692616973,4.62907863,2284.1,2283.7,19.89406705]
[1725692617175,7.03757863,2284.1,2284.0,0.04226426]
[1725692617409,2.0,2283.8,2283.5,7.46]
[1725692617566,5.7661375,2283.8,2283.4,19.89406705]
[1725692619606,8.1746375,2283.8,2283.4,19.89406705]
[1725692619813,3.7661375,2283.6,2283.1,19.89406705]
[1725692620118,5.22596375,2283.8,2282.9,19.89406705]
[1725692620119,3.7661375,2283.2,2282.9,19.89406705]
[1725692620275,3.7661375,2283.2,2283.0,0.1115681]
[1725692620276,2.0,2283.2,2283.0,0.1115681]
[1725692620474,3.7661375,2283.0,2282.8,19.89406705]
[1725692620869,3.7661375,2283.0,2282.4,11.84125]
[1725692621076,3.7661375,2283.0,2282.6,0.0223171]
[1725692621276,8.1746375,2283.2,2282.7,0.01874554]
[1725692621580,6.1746375,2283.2,2282.7,0.11532658]
[1725692621997,3.7661375,2283.2,2282.7,0.11532658]
[1725692622586,5.7661375,2283.2,2282.7,0.20292859]
[1725692622920,5.7661375,2283.2,2282.8,4.38055]
[1725692623121,5.7661375,2283.2,2282.9,0.08759783]
[1725692623414,5.7661375,2283.2,2282.8,4.38055]
[1725692623621,5.7661375,2283.2,2282.6,8.76166]
[1725692623908,5.7661375,2283.2,2282.8,4.38056]
[1725692624078,5.7661375,2283.2,2282.9,0.08759774]
[1725692624280,5.7661375,2283.2,2282.6,8.76163]
[1725692624612,5.7661375,2283.2,2282.7,0.11859364]
[1725692624778,5.7661375,2283.2,2282.7,0.20619423]
[1725692625178,2.4085,2283.1,2282.7,0.20619423]
[1725692625481,2.4085,2283.1,2282.7,0.20619853]
[1725692625697,2.4085,2283.1,2282.7,0.11859364]
[1725692625899,3.22596375,2283.1,2282.6,0.12182331]
[1725692626118,3.22596375,2283.1,2282.7,0.10789795]
[1725692626288,2.0,2282.8,2282.3,27.44168725]
[1725692626488,3.22596375,2283.1,2282.3,20.0170849]
[1725692626489,5.22596375,2283.1,2282.3,20.0170849]
[1725692627200,2.0,2282.8,2282.3,20.0170849]
[1725692627403,5.22596375,2283.1,2282.3,20.0170849]
[1725692627598,4.4085,2283.1,2282.4,4.38134]
[1725692627917,4.4085,2283.1,2282.5,0.14168489]
[1725692628414,4.4085,2283.1,2282.5,4.52275489]
[1725692628832,2.0,2283.1,2282.6,6.74285]
[1725692629114,2.0,2283.1,2282.7,0.08760518]
[1725692629285,2.0,2283.1,2282.7,0.04072018]
[1725692630019,2.0,2283.1,2282.4,6.83085528]
[1725692630193,2.0,2283.1,2282.8,0.04161706]
[1725692630393,2.0,2283.1,2282.5,19.89406705]
[1725692630714,2.0,2283.1,2282.6,0.11806891]
[1725692631012,2.4137,2283.0,2282.6,0.15968597]
[1725692632419,2.4137,2283.0,2282.6,4.42255706]
[1725692632619,2.4137,2283.0,2282.6,0.04161706]
[1725692633824,2.0,2283.1,2282.6,0.04161706]
[1725692638610,2.4137,2283.0,2282.6,0.04161706]
[1725692638983,2.0,2283.1,2282.6,0.04161706]
[1725692640119,2.0,2282.7,2282.6,0.04161706]
[1725692640326,2.57661375,2282.7,2282.6,0.04161706]
[1725692640528,2.57661375,2282.7,2282.1,4.46946727]
[1725692640878,2.0,2282.7,2282.6,0.03971663]
[1725692640999,6.1798375,2282.6,2282.0,9.822]
[1725692641320,6.1798375,2282.6,2282.0,2.362]
[1725692641504,6.1798375,2282.6,2282.1,0.03971663]
[1725692642734,6.1798375,2282.6,2281.9,19.89406705]
[1725692642933,6.99782125,2282.6,2282.2,0.03971663]
[1725692643103,6.99782125,2282.6,2281.9,19.89406705]
[1725692643285,6.1798375,2282.9,2282.3,4.42114663]
[1725692643489,6.1798375,2282.9,2282.4,0.08761656]
[1725692643689,3.7661375,2282.9,2282.4,20.02140024]
[1725692643890,2.0,2283.0,2282.5,6.74314]
[1725692644121,0.4581718,2282.8,2282.5,26.72481893]
[1725692644434,0.4581718,2282.8,2282.7,15.50431]
[1725692644648,0.4581718,2282.8,2282.7,16.05431]
[1725692644649,0.01526928,2282.8,2282.7,16.05431]
[1725692644856,5.7661375,2284.0,2283.2,11.12146]
[1725692645005,5.7661375,2284.0,2283.3,0.08758152]
[1725692645210,6.58412125,2284.0,2283.3,0.08758152]
[1725692645413,6.58412125,2284.0,2283.4,0.03971663]
[1725692646151,6.58412125,2284.0,2283.2,22.25606705]
[1725692646331,6.58412125,2284.0,2283.5,0.03926832]
[1725692646521,6.58412125,2284.0,2283.2,22.25606705]
[1725692646716,8.1798375,2283.7,2283.6,0.03926832]
[1725692646932,8.1798375,2283.7,2283.2,19.89406705]
[1725692647114,8.1798375,2283.7,2283.6,0.03926832]
[1725692647315,8.1798375,2283.7,2283.2,19.89406705]
[1725692647514,8.1798375,2283.7,2283.6,0.03902502]
[1725692647722,9.08779946,2283.7,2283.2,19.89406705]
[1725692647918,9.08779946,2283.7,2283.6,0.03902502]
[1725692648147,5.32166196,2283.7,2283.2,19.89406705]
[1725692648399,4.4137,2283.7,2283.6,0.03902502]
[1725692648557,4.4137,2283.7,2283.2,19.89406705]
[1725692648850,4.4137,2283.7,2283.6,0.03911465]
[1725692649052,4.4137,2283.7,2283.2,19.89406705]
[1725692649207,4.4137,2283.7,2283.6,0.03911465]
[1725692649412,4.4137,2283.7,2283.2,19.89406705]
[1725692649652,4.4137,2283.7,2283.6,0.03911465]
[1725692649954,4.4137,2283.7,2283.6,0.03912746]
[1725692650156,4.4137,2283.7,2283.1,19.89406705]
[1725692650356,4.4137,2283.7,2283.6,0.03912746]
[1725692650657,4.4137,2283.7,2283.1,19.89406705]
[1725692650951,5.23168375,2283.7,2283.1,19.89406705]
[1725692651153,5.23168375,2283.7,2283.2,0.0385639]
[1725692651926,2.0,2283.4,2283.2,0.0385639]
[1725692652564,2.0,2283.4,2282.9,0.08759757]
[1725692652890,2.0,2283.4,2282.8,19.89406705]
[1725692653091,2.0,2283.4,2283.0,0.03865354]
[1725692653399,2.0,2283.4,2282.8,19.89406705]
[1725692653575,2.0,2283.4,2283.1,0.03865354]
[1725692653889,2.0,2283.4,2283.2,0.03865354]
[1725692654090,2.0,2283.1,2282.8,19.89406705]
[1725692657692,2.0,2283.1,2282.8,22.19546705]
[1725692658948,2.0,2283.1,2282.6,19.89406705]
[1725692659493,3.7661375,2283.2,2282.7,4.50693149]
[1725692659707,2.0,2283.4,2282.8,0.08759948]
[1725692659908,2.0,2283.4,2282.9,2.3014]
[1725692660407,2.0,2283.4,2283.0,0.03899935]
[1725692667002,2.0,2283.4,2283.0,2.34039935]
[1725692667713,0.45814817,2283.5,2283.2,4.3797]
[1725692667914,0.45814817,2283.5,2283.4,2.3014]
[1725692668320,0.45814817,2283.5,2283.4,2.42806825]
[1725692669822,0.45814817,2283.5,2283.4,2.34048897]
[1725692670312,0.45814817,2283.5,2283.4,0.03908897]
[1725692672387,2.0,2283.7,2283.4,0.03908897]
[1725692672696,0.45810241,2283.8,2283.4,1.15255378]
[1725692673493,0.45810241,2283.8,2283.5,24.36079252]
[1725692673702,0.45810241,2283.8,2283.6,2.469656]
[1725692674206,0.45810241,2283.8,2283.6,2.55722795]
[1725692677021,0.45810241,2283.8,2283.6,22.451295]
[1725692677330,0.45810241,2283.8,2283.6,23.327261]
[1725692677730,0.45810241,2283.8,2283.6,20.80878905]
[1725692678086,0.45810241,2283.8,2283.6,19.93282305]
[1725692678087,2.90900241,2283.8,2283.6,19.93282305]
[1725692678856,3.7661375,2283.7,2283.6,19.89406705]
[1725692681762,4.4509,2283.3,2283.1,7.46]
[1725692683146,2.0,2283.3,2283.1,7.46]
[1725692683510,2.0,2283.3,2283.1,7.41]
[1725692683978,2.0,2283.3,2283.2,0.03828227]
[1725692684677,3.7661375,2283.4,2283.2,0.03828227]
[1725692686187,2.4509,2285.2,2284.3,2.4309]
[1725692686402,2.0,2285.0,2284.3,2.4309]
[1725692686544,2.0,2285.0,2284.4,0.0389609]
[1725692686745,2.0,2285.0,2284.3,2.4309]
[1725692686746,6.37647,2285.0,2284.3,6.89604304]
[1725692687187,4.37656,2284.9,2284.3,2.51844304]
[1725692687343,6.37647,2285.0,2284.3,2.51844304]
[1725692687344,10.75297,2285.0,2284.3,2.51844304]
[1725692687547,1.099806,2284.9,2284.3,2.51844304]
[1725692687769,5.476436,2284.9,2284.3,2.51844304]
[1725692688377,1.099806,2284.9,2284.3,2.4309]
[1725692690051,2.378,2285.5,2284.7,3.7661375]
[1725692690261,2.378,2285.5,2284.8,0.08752539]
[1725692690751,2.0,2285.6,2284.8,2.54942539]
[1725692691064,2.0,2285.6,2284.8,2.4619]
[1725692691264,0.4378,2285.5,2284.8,2.4619]
[1725692695069,0.4378,2285.5,2284.6,0.08752536]
[1725692703723,0.4378,2285.5,2284.6,2.4619]
[1725692703922,0.4378,2285.5,2284.7,0.08752225]
[1725692704594,0.4378,2285.5,2284.6,2.4619]
[1725692704787,0.24378,2285.4,2284.7,0.0875273]
[1725692710336,2.2739,2284.6,2283.6,7.41]
[1725692710640,4.37975,2283.3,2283.1,2.3172]
[1725692710933,4.37981,2283.2,2283.1,2.3172]
[1725692711993,8.75962,2283.2,2283.1,2.3172]
[1725692712195,4.38069,2282.8,2282.3,2.3172]
[1725692712425,4.38069,2282.8,2282.3,2.43387706]
[1725692712594,4.38069,2282.8,2282.4,0.24338771]
[1725692712797,4.38069,2282.8,2282.5,0.14001007]
[1725692713224,4.38078,2282.7,2282.5,0.14001007]
[1725692713689,4.38078,2282.7,2282.4,0.24338771]
[1725692714014,4.3806,2282.8,2282.4,0.24338771]
[1725692714423,4.38043,2282.9,2282.4,0.24338771]
[1725692714644,4.38069,2282.8,2282.4,0.24338771]
[1725692714937,4.38079,2282.7,2282.4,0.24338771]
[1725692716342,4.38171,2282.3,2282.0,2.3172]
[1725692716492,8.76342,2282.3,2282.0,2.3172]
[1725692716693,4.38191,2282.2,2282.0,2.3172]
[1725692717338,4.38192,2282.1,2282.0,2.3172]
[1725692717503,4.38192,2282.1,2282.0,2.54892]
[1725692717700,4.38167,2282.3,2282.0,2.54892]
[1725692717910,8.76332,2282.3,2282.1,0.08762641]
[1725692718111,4.38173,2282.2,2282.1,0.08762641]
[1725692718436,8.76332,2282.3,2282.0,2.54892]
[1725692718638,4.38165,2282.3,2282.0,2.54892]
[1725692719431,4.38186,2282.2,2282.0,2.54892]
[1725692719595,4.38165,2282.3,2282.0,2.54892]
[1725692719991,8.76331,2282.3,2282.0,2.54892]
[1725692720436,8.7633,2282.3,2282.0,2.54892]
[1725692720601,4.38165,2282.3,2282.0,2.54892]
[1725692722299,4.38179,2282.2,2282.0,2.54892]
[1725692722844,4.38165,2282.3,2282.1,0.254892]
[1725692723621,4.38165,2282.3,2282.0,2.3172]
[1725692724997,4.38174,2282.2,2282.0,2.3172]
[1725692725455,4.38211,2282.1,2281.4,2.3172]
[1725692725637,4.38183,2282.2,2281.4,2.3172]
[1725692725638,4.38212,2282.0,2281.4,2.3172]
[1725692725937,4.38164,2282.3,2281.6,2.3172]
[1725692726146,4.38174,2282.2,2281.7,0.08762874]
[1725692726554,4.38222,2282.0,2281.6,2.3172]
[1725692726846,4.38193,2282.1,2281.7,0.08763819]
[1725692727024,4.38193,2282.1,2281.7,0.38998688]
[1725692727228,4.38183,2282.2,2281.8,0.08763475]
[1725692727406,8.76366,2282.2,2281.8,0.08763475]
[1725692727615,4.38183,2282.2,2281.8,0.08763475]
[1725692727821,8.76366,2282.2,2281.8,0.08763475]
[1725692728135,8.76367,2282.2,2281.8,0.08763475]
[1725692728313,4.38183,2282.2,2281.8,0.08763475]
[1725692728765,8.76371,2282.2,2281.9,0.0410236]
[1725692729165,8.76371,2282.2,2281.8,0.08763475]
[1725692729464,4.38193,2282.1,2281.7,0.26365582]
[1725692729765,4.38183,2282.2,2281.8,0.12864559]
[1725692730057,4.38148,2282.4,2281.8,0.12864559]
[1725692730258,4.37932,2283.5,2282.3,2.4303]
[1725692730464,4.37905,2283.6,2282.6,2.4303]
[1725692730667,4.37905,2283.6,2282.8,2.4303]
[1725692730820,4.379,2283.7,2282.9,0.08758027]
[1725692731164,4.379,2283.7,2282.9,0.12774543]
[1725692731323,4.37926,2283.5,2282.9,1.23387667]
[1725692731527,4.379,2283.7,2282.9,1.23387667]
[1725692731528,4.37895,2283.7,2283.0,0.0875822]
[1725692731730,4.37984,2283.2,2283.1,0.12178367]
[1725692732235,4.37984,2283.2,2282.8,2.4303]
[1725692732443,4.37984,2283.2,2283.1,0.11972146]
[1725692732640,4.37984,2283.2,2282.8,2.4303]
[1725692732966,4.37984,2283.2,2282.9,0.33062223]
[1725692733172,4.37984,2283.2,2282.9,0.45034369]
[1725692733517,4.37984,2283.2,2282.9,0.36275146]
[1725692733723,4.37949,2283.4,2282.9,0.36275146]
[1725692734021,4.37967,2283.3,2283.0,0.08758842]
[1725692734238,4.37992,2283.2,2282.9,0.36275146]
[1725692734452,4.37992,2283.2,2283.1,0.11992633]
[1725692734453,8.75987,2283.2,2283.1,0.11992633]
[1725692734770,4.37992,2283.2,2283.1,0.11992633]
[1725692735074,8.75986,2283.2,2282.8,2.4303]
[1725692735270,4.37992,2283.2,2283.1,0.11992633]
[1725692735480,4.37992,2283.2,2282.8,2.67333]
[1725692735989,4.37992,2283.2,2282.9,0.2075225]
[1725692736645,0.45868353,2283.3,2282.9,0.2075225]
[1725692736646,0.45868353,2283.3,2282.9,0.49560775]
[1725692737267,4.83833353,2283.3,2283.0,0.08758708]
[1725692737672,4.83833353,2283.3,2282.9,0.28808525]
[1725692737878,0.45868353,2283.3,2283.1,0.11992633]
[1725692738114,0.45868353,2283.3,2283.0,0.08758876]
[1725692738245,0.45868353,2283.3,2283.2,0.11992633]
[1725692738437,0.45868353,2283.3,2282.9,0.28808525]
[1725692738810,0.45868353,2283.3,2283.0,0.2075108]
[1725692738974,0.45868353,2283.3,2283.0,0.5001004]
[1725692740473,9.21804353,2283.3,2283.0,0.5001004]
[1725692740785,9.21802353,2283.3,2283.0,0.2075108]
[1725692740988,9.21804353,2283.3,2283.0,0.2075108]
[1725692741190,9.21803353,2283.3,2283.0,0.11992633]
[1725692741344,9.21806353,2283.3,2283.0,0.11992633]
[1725692741689,4.38012,2283.1,2282.8,2.4303]
[1725692741990,4.38032,2283.0,2282.4,2.4303]
[1725692742194,4.38032,2283.0,2282.5,0.24303]
[1725692742363,4.83835353,2283.3,2282.5,0.08760019]
[1725692742562,4.38052,2282.9,2282.5,0.08760019]
[1725692744298,4.38058,2282.8,2282.5,0.08760019]
[1725692746101,4.3804,2282.9,2282.5,0.08760019]
[1725692746452,4.38059,2282.8,2282.5,0.08760019]
[1725692746747,4.38059,2282.8,2282.5,0.33939021]
[1725692748004,4.38033,2283.0,2282.5,0.33939021]
[1725692748005,4.3804,2282.9,2282.5,0.33939021]
[1725692748490,4.38059,2282.8,2282.5,0.33939021]
[1725692749455,4.38059,2282.8,2282.6,0.12048978]
[1725692749764,4.3804,2282.9,2282.6,0.12048978]
[1725692749969,4.3804,2282.9,2282.7,0.08760615]
[1725692750390,0.45873147,2283.0,2282.8,0.12048978]
[1725692750702,4.83903147,2283.0,2282.8,0.08759866]
[1725692750865,4.83903147,2283.0,2282.9,0.12048978]
[1725692752308,9.21933147,2283.0,2282.9,0.12048978]
[1725692752679,4.38063,2282.8,2282.5,0.08760026]
[1725692753617,9.21940147,2283.0,2282.5,0.08760026]
[1725692753869,0.45873147,2283.0,2282.5,0.08760026]
[1725692754177,3.7661375,2283.6,2282.9,2.3204]
[1725692754178,4.37917,2283.6,2282.9,2.3204]
[1725692754379,0.45869152,2283.5,2283.0,2.40797764]
[1725692754579,0.45869152,2283.5,2283.1,0.24079776]
[1725692755685,0.45869152,2283.5,2283.2,0.08757844]
[1725692756009,0.45869152,2283.5,2283.1,0.24079776]
[1725692756535,0.45869152,2283.5,2283.2,0.08757848]
[1725692760742,0.45869152,2283.5,2283.1,0.24079776]
[1725692761512,4.83794152,2283.5,2283.1,0.24079776]